Cogmind - Beta 10.2 --- EXPLORER MODE // 2021.04.05 @ 19:09:11 // Winter2019/RPGLIKE Player: Sabazin Result: Destroyed by Q458-a with Molecular Scythe Performance ------------- Evolutions (8) 4000 Regions Visited (22) 4400 Robots Destroyed (429) 2145 Value Destroyed (21450) 21450 Prototype IDs (57) 1140 Alien Tech Used (0) 0 Bonus (4716) 4716 TOTAL SCORE: 37851 Bonus ------- High Alert Combat Kills 956 Follower Combat Kills 1108 Network Hubs Disabled 800 Met Imprinter 300 Was Imprinted 300 Met R17 at Cetus 500 Scanned by Researcher 500 Acquired SGEMP 2000 Friendly Fire -1748 Cogmind --------- Core Integrity 0/1050 Matter 280/300 Energy 568/635 System Corruption 1% Temperature Cool (-150) Movement Treading (163) Location -2/Research Parts ------- > --- POWER (4) -------- Neutrino Core Micro Fission Core Quantum Reactor > --- PROPULSION (5) --- Armored Medium Treads Improved Heavy Treads Improved Heavy Treads > --- UTILITY (10) ----- Improved Cryofiber Web Experimental Cooling System Improved Sensor Array Advanced Signal Interpreter Experimental Targeting Computer Advanced Armor Integrity Analyzer Experimental Phase Shifter Centrium Heavy Armor Plating System Backup Module > --- WEAPON (7) ------- Precision Phase Gun Advanced Beam Cannon Advanced Beam Cannon Advanced Beam Cannon Advanced Beam Cannon > --- INVENTORY (6) ---- Experimental Thermal Shield Improved Shock Absorption System Antimissile System Phasing AFG SGEMP Prototype Peak State ------------ > --- POWER ------------ Neutrino Core Micro Fission Core Quantum Reactor Quantum Reactor > --- PROPULSION ------- Armored Medium Treads Improved Heavy Treads Improved Heavy Treads > --- UTILITY ---------- Improved Cryofiber Web Experimental Cooling System Improved Sensor Array Advanced Signal Interpreter Targeting Computer Experimental Targeting Computer Experimental Phase Shifter Hardened Heavy Armor Plating Experimental Thermal Shield > --- WEAPON ----------- Precision Phase Gun High-powered Disruptor Cannon Advanced Beam Cannon Advanced Beam Cannon Advanced Beam Cannon Advanced Beam Cannon > --- INVENTORY -------- Improved Shock Absorption System Antimissile System System Backup Module Phasing AFG SGEMP Prototype [Rating: 168] Favorites ----------- Power Quantum Reactor Engine Ion Engine Power Core Micro Fission Core Reactor Quantum Reactor Propulsion Light Treads Treads Light Treads Leg Carbon-fiber Leg Flight Unit VTOL Module Utility Targeting Computer Device Improved Sensor Array Storage Improved Energy Well Processor Targeting Computer Hackware System Mapper Protection Hardened Heavy Armor Plating Weapon Advanced Beam Cannon Energy Gun Improved Medium Laser Energy Cannon Advanced Beam Cannon Build | -11 -10 -10 -9 -9 -9 -8 -8 -7 -6 -6 -6 -6 -5 -5 -5 -5 -5 -5 -4 -3 -3 -2 ------- Run | Scr Mat Min Mat Min Exi Min Mat Fac Fac Low Low Zio Pro Fac Ext Cet Arc Hub Fac Res Tes Res Slots Evolved 22 | 4 . 1 6 1 . . 3 1 2 . 1 . . . 1 . . . 1 1 . . Power 3 | 1 . . 1 . . . . . . . . . . . 1 . . . . . . . Propulsion 4 | 1 . . 1 . . . 1 . . . . . . . . . . . 1 . . . Utility 9 | 1 . 1 1 1 . . 1 1 1 . 1 . . . . . . . . 1 . . Weapon 6 | 1 . . 3 . . . 1 . 1 . . . . . . . . . . . . . Parts Attached 184 | 8 2 . 18 1 . 1 21 3 5 2 4 11 3 1 13 6 . 26 11 5 37 6 Power 17 | 2 . . 1 . . . 4 . . . 1 . . . 3 3 . . . 1 2 . Engine 6 | 2 . . . . . . 3 . . . . . . . 1 . . . . . . . Core 4 | . . . 1 . . . 1 . . . 1 . . . . . . . . 1 . . Reactor 7 | . . . . . . . . . . . . . . . 2 3 . . . . 2 . Propulsion 27 | 2 1 . . . . 1 3 . . 2 1 . . 1 3 1 . 7 4 . . 1 Treads 23 | 2 1 . . . . . 3 . . 1 1 . . 1 3 1 . 5 4 . . 1 Leg 3 | . . . . . . 1 . . . . . . . . . . . 2 . . . . Wheel . | . . . . . . . . . . . . . . . . . . . . . . . Hover . | . . . . . . . . . . . . . . . . . . . . . . . Flight 1 | . . . . . . . . . . 1 . . . . . . . . . . . . Utility 103 | 2 1 . 9 1 . . 5 3 4 . 2 6 3 . 5 2 . 18 6 4 27 5 Device 65 | . . . 3 1 . . 3 1 1 . 1 3 2 . 2 . . 14 3 4 23 4 Storage 3 | . . . . . . . . . . . . . 1 . 1 . . . . . 1 . Processor 5 | 1 . . 1 . . . . . 1 . . . . . . . . 1 . . 1 . Hackware 3 | . . . . . . . . . . . . . . . . . . 1 . . 2 . Protection 27 | 1 1 . 5 . . . 2 2 2 . 1 3 . . 2 2 . 2 3 . . 1 Artifact . | . . . . . . . . . . . . . . . . . . . . . . . Weapon 37 | 2 . . 8 . . . 9 . 1 . . 5 . . 2 . . 1 1 . 8 . Energy Gun 13 | 2 . . 5 . . . 2 . . . . 1 . . . . . 1 . . 2 . Energy Cannon 24 | . . . 3 . . . 7 . 1 . . 4 . . 2 . . . 1 . 6 . Ballistic Gun . | . . . . . . . . . . . . . . . . . . . . . . . Ballistic Cannon . | . . . . . . . . . . . . . . . . . . . . . . . Launcher . | . . . . . . . . . . . . . . . . . . . . . . . Special Weapon . | . . . . . . . . . . . . . . . . . . . . . . . Impact Weapon . | . . . . . . . . . . . . . . . . . . . . . . . Slashing Weapon . | . . . . . . . . . . . . . . . . . . . . . . . Piercing Weapon . | . . . . . . . . . . . . . . . . . . . . . . . Special Melee Weapon . | . . . . . . . . . . . . . . . . . . . . . . . Unidentified Prototypes 35 | . . . 1 . . . 3 . . . . 3 2 . 4 2 . 6 . 1 12 1 Parts Lost . | . . . . . . . . . . . . . . . . . . . . . . . Power . | . . . . . . . . . . . . . . . . . . . . . . . Propulsion . | . . . . . . . . . . . . . . . . . . . . . . . Utility . | . . . . . . . . . . . . . . . . . . . . . . . Weapon . | . . . . . . . . . . . . . . . . . . . . . . . Highest Loss Streak . | . . . . . . . . . . . . . . . . . . . . . . . Average Slot Usage (%) 92 | . 100 88 89 93 93 99 97 95 95 95 95 93 95 95 94 93 91 92 90 87 87 87 Engine 7 | . 25 22 14 12 12 12 10 10 9 9 8 8 8 8 8 4 4 4 4 . . . Core 4 | . . . 2 6 6 6 5 5 4 4 4 4 4 4 4 4 4 4 4 6 7 7 Reactor 2 | . . . . . . . . . . . . . . . 1 7 8 8 8 7 6 6 Treads 15 | . 25 22 14 12 12 12 20 20 18 18 17 17 17 17 16 14 12 12 14 11 11 10 Device 12 | . . . 2 5 6 6 9 10 12 13 13 14 16 17 16 16 16 14 15 18 18 18 Processor 11 | . 12 11 9 12 12 12 10 10 12 13 13 13 13 13 12 8 8 9 12 11 11 11 Protection 6 | . 12 11 10 12 12 12 10 10 5 4 4 4 4 4 4 7 8 8 4 3 3 3 Energy Gun 4 | . 25 22 16 12 12 12 3 . . . . . . . . . . 1 4 3 3 3 Energy Cannon 24 | . . . 18 18 18 18 24 30 30 31 30 29 30 30 29 29 29 27 24 23 22 22 Naked Turns . | . . . . . . . . . . . . . . . . . . . . . . . Heaviest Build 134 | 13 13 13 39 40 40 40 56 73 73 71 78 78 76 74 84 116 116 117 115 115 134 118 Greatest Support 187 | 40 40 50 50 50 50 50 90 90 90 90 93 93 93 100 127 150 150 150 187 187 187 187 Greatest Overweight (x) 2 | 2 . . . . . . . . . . . . . . . . . 1 1 . . . Average Overweight (x) . | . . . . . . . . . . . . . . . . . . . . . . . Largest Inventory Capacity 6 | 2 2 2 2 2 2 2 4 4 4 4 4 4 4 4 4 4 4 4 4 4 6 6 Average Capacity 3 | 1 2 2 2 2 2 2 3 4 4 4 4 4 4 4 4 4 4 4 4 4 5 6 Most Carried 6 | 2 2 2 2 2 1 2 4 4 4 4 4 4 4 4 4 4 4 4 4 4 6 6 Average Carried 3 | . 1 2 1 1 1 1 3 3 2 3 3 3 3 3 3 4 4 3 4 3 5 6 Final Capacity 6 | 2 2 2 2 2 2 2 4 4 4 4 4 4 4 4 4 4 4 4 4 4 6 6 Final Carried 6 | . 2 2 2 1 1 1 3 4 3 3 3 4 4 4 4 4 4 4 4 4 6 6 Class Distribution -------------------- 36% | Scavenger-Executioner 16% | Generator-Executioner 15% | Hacker-Gunner 14% | Pyromaniac-Executioner 7% | Hacker-Mutant 6% | Hacker-Executioner 3% | Scavenger-Gunner Dominant Class ---------------- Hacker-Mutant | -10/Materials Hacker-Mutant | -10/Mines Hacker-Gunner | -9/Materials Hacker-Gunner | -9/Mines Hacker-Gunner | -9/Exiles Hacker-Gunner | -8/Mines Scavenger-Gunner | -8/Materials Hacker-Executioner | -7/Factory Pyromaniac-Executioner | -6/Factory Pyromaniac-Executioner | -6/Lower Caves Pyromaniac-Executioner | -6/Lower Caves Scavenger-Executioner | -6/Zion Scavenger-Executioner | -5/Proximity Caves Scavenger-Executioner | -5/Factory Pyromaniac-Executioner | -5/Extension Scavenger-Executioner | -5/Cetus Scavenger-Executioner | -5/Archives Scavenger-Executioner | -5/Hub_04(d) Generator-Executioner | -4/Factory Generator-Executioner | -3/Research Generator-Executioner | -3/Testing Scavenger-Executioner | -2/Research Resources | -11 -10 -10 -9 -9 -9 -8 -8 -7 -6 -6 -6 -6 -5 -5 -5 -5 -5 -5 -4 -3 -3 -2 ----------- Run | Scr Mat Min Mat Min Exi Min Mat Fac Fac Low Low Zio Pro Fac Ext Cet Arc Hub Fac Res Tes Res Matter Collected 2265 | 280 . 47 194 . . 16 206 10 . 90 30 78 72 . 118 80 . 423 131 80 370 40 Remotely . | . . . . . . . . . . . . . . . . . . . . . . . Salvage Created 19281 | 241 157 126 1173 . . 303 1851 1067 . 580 377 . 72 177 688 954 682 3777 710 1804 2807 1735 Parts 988 | 22 13 13 88 2 . 13 112 43 . 15 21 . 2 3 43 54 31 150 44 82 142 95 Haulers Intercepted 10 | . . . 4 . . . 4 1 . . . . . . . . . . . . 1 . Recyclers Shooed 2 | . . . . . . . . . . . . . . . . . . 1 1 . . . Parts Field Recycled . | . . . . . . . . . . . . . . . . . . . . . . . Retrieved Matter . | . . . . . . . . . . . . . . . . . . . . . . . Parts Self-Destructed . | . . . . . . . . . . . . . . . . . . . . . . . Prevented . | . . . . . . . . . . . . . . . . . . . . . . . Kills | -11 -10 -10 -9 -9 -9 -8 -8 -7 -6 -6 -6 -6 -5 -5 -5 -5 -5 -5 -4 -3 -3 -2 ------- Run | Scr Mat Min Mat Min Exi Min Mat Fac Fac Low Low Zio Pro Fac Ext Cet Arc Hub Fac Res Tes Res Combat Hostiles Destroyed 315 | . 5 4 29 1 . 10 38 20 . 9 12 . 3 2 7 22 4 52 12 21 39 25 Guns 44 | . 5 4 14 1 . 5 6 . . . . . . . . . . 1 . . 4 4 Cannons 249 | . . . 14 . . 5 32 19 . 9 12 . 2 1 6 21 3 43 11 19 33 19 AOE 1 | . . . . . . . . . . . . . . . . . . 1 . . . . Classes Destroyed 23 | 3 2 1 3 . . 1 2 1 . . . . . . 3 . . 2 . . 5 . Worker 25 | 2 1 1 . . . . 2 . . . . . . . . . . 10 2 . 1 6 Builder 5 | . . . . . . . 3 . . . . . . . . . . 2 . . . . Tunneler 6 | 5 . 1 . . . . . . . . . . . . . . . . . . . . Hauler 10 | . . . 4 . . . 4 1 . . . . . . . . . . . . 1 . Recycler 9 | 1 . . . . . . 3 . . . . . . . . . . 2 . . 1 2 Operator 22 | . . . 2 . . . 2 1 . 1 . . . . . . 9 1 2 2 2 . Watcher 30 | . 2 . 5 . . . 4 2 . . . . . 1 2 2 . 5 . 3 2 2 Swarmer 48 | . . 2 2 . . 5 7 4 . 3 5 . 2 1 . 7 . . . . 3 7 Grunt 96 | . 5 2 17 1 . 4 19 7 . 5 2 . . . 2 1 . 19 . 6 6 . Brawler 4 | . . . . . . . 1 . . 1 . . . . . 1 . 1 . . . . Duelist 2 | . . . . . . . . . . . . . . . . . . 2 . . . . Protector 3 | . . . . . . . . . . . . . . . . . . 3 . . . . Researcher 2 | . . . . . . . . . . . . . . . . . . . . . 2 . Sentry 50 | . . . 10 . . . 9 6 . . 2 . 1 1 . . 4 9 4 3 . 1 Specialist 6 | . . . . . . . . . . . . . . . . . . . . . 6 . Hunter 31 | . . . . . . 1 2 . . . 1 . . . 2 3 . . . 5 7 10 Programmer 46 | . . . . . . . . 3 . . 2 . . . 1 2 . 6 8 7 11 6 Q-Series 2 | . . . . . . . . . . . . . . . . . . . . . 1 1 Behemoth 2 | . . . . . . . . . . . . . . . 2 . . . . . . . Cetus Guard 8 | . . . . . . . . . . . . . . . . 8 . . . . . . Lightning 12 | . . . . . . . . . . . . . . . . . . 12 . . . . Striker 1 | . . . . . . . . . . . . . . . . . . . . . 1 . Alpha 7 2 | . . . . . . . . . . . . . . . . . . . . . 2 . Protovariant G 1 | . . . . . . . . . . . . . . . . . . . . . 1 . Protovariant Y 1 | . . . . . . . . . . . . . . . . . . . . . 1 . Z-Light 3 | . . . . . . . . . . . . . . . 3 . . . . . . . Mutant 2 | . . . . . . . . . . . . . . . 2 . . . . . . . Best Kill Streak 11 | 4 3 2 6 1 . 4 6 4 . 7 5 . 2 1 3 5 7 11 4 9 8 8 Combat Bots Only 7 | . 3 2 5 1 . 4 4 4 . 7 5 . 2 1 2 4 2 7 4 4 5 6 Max Kills in Single Turn 8 | 1 1 1 2 1 . 1 3 2 . 2 1 . 1 1 5 2 1 8 2 1 2 2 Gunslinging 1 | . . . 1 . . . . . . . . . . . . . . . . . . . Exploded 1 | . . . . . . . . . . . . . . . . . . 1 . . . . Melee . | . . . . . . . . . . . . . . . . . . . . . . . Uniques/NPCs Destroyed . | . . . . . . . . . . . . . . . . . . . . . . . Combat | -11 -10 -10 -9 -9 -9 -8 -8 -7 -6 -6 -6 -6 -5 -5 -5 -5 -5 -5 -4 -3 -3 -2 -------- Run | Scr Mat Min Mat Min Exi Min Mat Fac Fac Low Low Zio Pro Fac Ext Cet Arc Hub Fac Res Tes Res Damage Taken 11296 | . 187 132 416 . . 229 575 382 . 512 479 . 139 186 156 804 125 3182 375 388 1196 1833 Core 7725 | . 131 98 289 . . 145 390 237 . 345 344 . 82 129 107 544 79 2107 242 270 812 1374 Absorbed by Shields . | . . . . . . . . . . . . . . . . . . . . . . . Redirected to Core 7151 | . 104 75 252 . . 136 369 219 . 304 272 . 68 129 107 506 79 2057 217 240 752 1265 Core Remaining (%) 96 | 100 . 100 . . . 100 100 87 . . . . 100 . . . . 83 100 . 95 . Volleys Fired 593 | 11 19 13 53 1 . 15 78 33 . 11 14 . 5 4 13 34 22 97 18 36 68 48 Largest 7 | 2 2 2 5 5 . 5 6 6 . 7 7 . 7 7 7 7 7 7 7 7 7 7 Hottest 502 | 80 80 80 334 316 . 316 408 408 . 476 476 . 476 476 476 476 476 476 473 473 502 502 Shots Fired 3494 | 22 38 26 239 5 . 75 401 198 . 77 98 . 35 28 91 237 154 606 126 252 472 314 Gun 470 | 22 38 26 128 2 . 30 42 . . . . . . . . . . 19 18 36 64 45 Cannon 3024 | . . . 111 3 . 45 359 198 . 77 98 . 35 28 91 237 154 587 108 216 408 269 Launcher . | . . . . . . . . . . . . . . . . . . . . . . . Special . | . . . . . . . . . . . . . . . . . . . . . . . Kinetic . | . . . . . . . . . . . . . . . . . . . . . . . Thermal 3376 | 22 38 26 239 5 . 75 401 198 . 77 98 . 35 28 91 237 154 587 108 216 427 314 Explosive . | . . . . . . . . . . . . . . . . . . . . . . . Electromagnetic 118 | . . . . . . . . . . . . . . . . . . 19 18 36 45 . Robot Hit Streak 105 | 18 27 19 63 64 . 82 61 105 . 35 30 . 13 8 26 48 54 84 69 76 96 42 Robot Miss Streak 2 | . 2 1 1 . . 1 1 1 . 1 1 . 1 1 1 1 1 1 1 1 1 2 Penetration Max . | . . . . . . . . . . . . . . . . . . . . . . . Secondary Targets 5 | . 2 2 1 . . . . . . . . . . . . . . . . . . . Max Gunslinging Chain 1 | . 1 1 1 . . . . . . . . . . . . . . . . . . . Shots Hit Robots 2203 | 18 31 22 160 1 . 45 241 115 . 41 44 . 20 18 44 115 85 413 92 165 316 217 Core Hits 848 | 9 14 11 56 2 . 18 81 47 . 19 21 . 5 2 27 41 31 171 35 66 121 71 Critical Hits 268 | . . . 5 . . 1 24 17 . 9 7 . 3 . 5 23 12 61 8 21 46 26 Critical Kills 108 | . . . 2 . . 1 12 6 . 4 2 . . . 1 11 7 24 3 6 21 8 Critical Parts Destroyed 146 | . . . 3 . . . 11 11 . 5 5 . 3 . 4 9 3 35 5 13 22 17 Melee Attacks . | . . . . . . . . . . . . . . . . . . . . . . . Impact . | . . . . . . . . . . . . . . . . . . . . . . . Slashing . | . . . . . . . . . . . . . . . . . . . . . . . Piercing . | . . . . . . . . . . . . . . . . . . . . . . . Sneak Attacks . | . . . . . . . . . . . . . . . . . . . . . . . Combat Hostiles . | . . . . . . . . . . . . . . . . . . . . . . . Follow-up Attacks . | . . . . . . . . . . . . . . . . . . . . . . . Damage Inflicted 48561 | 200 339 206 2555 26 . 821 4564 2091 . 799 934 . 371 300 2107 2569 1855 10406 2374 3653 7376 5015 Guns 6350 | 200 338 202 1493 17 . 420 533 . . . . . . . . . . 216 124 415 1121 1271 Cannons 39524 | . . . 1062 . . 385 3998 2091 . 799 934 . 371 300 977 2569 1855 8867 2157 3165 6255 3739 Explosions 2550 | . . . . . . . . . . . . . . . 1121 . . 1289 67 73 . . Melee . | . . . . . . . . . . . . . . . . . . . . . . . Ramming 137 | . 1 4 . 9 . 16 33 . . . . . . . 9 . . 34 26 . . 5 Kinetic . | . . . . . . . . . . . . . . . . . . . . . . . Thermal 45891 | 200 338 202 2555 17 . 805 4531 2091 . 799 934 . 371 300 2098 2569 1855 8867 2224 3238 6887 5010 Explosive . | . . . . . . . . . . . . . . . . . . . . . . . Electromagnetic 2533 | . . . . . . . . . . . . . . . . . . 1505 124 415 489 . Impact . | . . . . . . . . . . . . . . . . . . . . . . . Slashing . | . . . . . . . . . . . . . . . . . . . . . . . Piercing . | . . . . . . . . . . . . . . . . . . . . . . . Highest Corruption 33 | . 3 3 1 1 1 1 2 2 . . . . . . 1 1 1 33 2 1 1 2 Average Corruption 4 | . 2 3 1 1 1 1 2 1 . . . . . . 1 1 1 14 1 1 1 1 Corruption Purged 4 | . . . . . . . . . . . . . . . . . . . 1 1 1 1 Effects 318 | . 4 21 2 . 5 5 17 5 . . . . . . 2 6 5 226 . 2 9 9 Message Errors 46 | . 1 7 . . 1 3 6 2 . . . . . . . 1 2 18 . . 4 1 Matter Fused 19 | . 2 4 . . . . . . . . . . . . . . . 13 . . . . Heat Flow Errors 12 | . . 1 . . . . 2 . . . . . . . . . . 8 . . . 1 Energy Discharges 18 | . 1 2 . . 1 . 2 1 . . . . . . 1 1 . 8 . 1 . . Parts Rejected 1 | . . . . . . . . . . . . . . . . . . 1 . . . . Data Loss (minor) 34 | . . 4 2 . 3 2 1 . . . . . . . . 2 1 16 . 1 2 . Data Loss (major) 4 | . . . . . . . . . . . . . . . . . . 4 . . . . Misfires 7 | . . . . . . . . . . . . . . . . . . 7 . . . . Alerts 6 | . . . . . . . . . . . . . . . . . . 6 . . . . Misdirections 18 | . . . . . . . . . . . . . . . . . . 18 . . . . Targeting Errors 131 | . . 3 . . . . 6 2 . . . . . . 1 1 2 108 . . 3 5 Weapon Failures 22 | . . . . . . . . . . . . . . . . 1 . 19 . . . 2 Overload Shots . | . . . . . . . . . . . . . . . . . . . . . . . Overflow Damage 529 | . . . 10 . . 19 16 5 . . 14 . . 11 62 1 38 134 30 29 132 28 Projectiles 413 | . . . 10 . . 19 16 5 . . 14 . . 11 8 1 38 72 30 29 132 28 Explosions 108 | . . . . . . . . . . . . . . . 54 . . 54 . . . . Melee 8 | . . . . . . . . . . . . . . . . . . 8 . . . . Knockbacks . | . . . . . . . . . . . . . . . . . . . . . . . Impact . | . . . . . . . . . . . . . . . . . . . . . . . Kinetic . | . . . . . . . . . . . . . . . . . . . . . . . Secondary . | . . . . . . . . . . . . . . . . . . . . . . . Self-Inflicted Damage 408 | . . . . . . . . . . . . . . . 53 . . 268 47 40 . . Shots 8 | . . . . . . . . . . . . . . . 2 . . 4 1 1 . . Rammed 16 | . 1 1 . 2 . 3 4 . . . . . . . 1 . . 1 3 . . . Targets Rammed 21 | . 1 1 . 2 . 3 6 . . . . . . . 1 . . 3 3 . . 1 Kicked . | . . . . . . . . . . . . . . . . . . . . . . . Crushed 5 | . . . . . . . 2 . . . . . . . . . . 2 . . . 1 Highest Temperature 544 | . . . 63 . . 4 150 . . 362 146 . . . 100 544 380 529 134 212 90 . Average Temperature 116 | . . . 14 . . 4 32 . . 146 58 . . . 63 178 127 140 57 76 48 . Received Heat Transfer 2318 | . 108 90 258 . . 90 351 216 . 243 114 . 36 57 29 99 9 399 27 72 120 . Effects 15 | . . . . . . . . . . . . . . . . 1 . 14 . . . . Shutdowns 4 | . . . . . . . . . . . . . . . . . . 4 . . . . Energy Bleed 1 | . . . . . . . . . . . . . . . . . . 1 . . . . Interference 4 | . . . . . . . . . . . . . . . . . . 4 . . . . Matter Decay 2 | . . . . . . . . . . . . . . . . . . 2 . . . . Short Circuit 2 | . . . . . . . . . . . . . . . . 1 . 1 . . . . Damage (minor) 2 | . . . . . . . . . . . . . . . . . . 2 . . . . Siege Activations . | . . . . . . . . . . . . . . . . . . . . . . . Robots Corrupted 1 | . . . . . . . . . . . . . . . . . . 1 . . . . Combat Hostiles . | . . . . . . . . . . . . . . . . . . . . . . . Parts Fried 6 | . . . . . . . . . . . . . . . . . . 5 . . 1 . Impact Corruptions 1 | . . . . . . . . . . . . . . . . . . 1 . . . . Robots Melted 23 | . . . 1 . . . 1 1 . . . . 1 1 1 1 2 7 1 2 2 2 Combat Hostiles 21 | . . . 1 . . . . 1 . . . . 1 1 1 1 1 7 1 2 2 2 Parts Melted 233 | . . 1 17 . . . 20 12 . 2 8 . 3 1 3 11 11 44 16 10 42 32 Heat Transferred 70933 | 450 750 450 5412 37 . 1554 8066 3552 . 1443 1517 . 666 518 2017 3959 2923 12359 2862 4675 10619 7104 Parts Sabotaged 1 | . . . . . . . . . . . . . . . . . . 1 . . . . Parts Stolen . | . . . . . . . . . . . . . . . . . . . . . . . Parts Stripped . | . . . . . . . . . . . . . . . . . . . . . . . Power Chain Reactions 2 | . . . . . . . . . . . . . . . . . . . 1 1 . . Missiles Intercepted . | . . . . . . . . . . . . . . . . . . . . . . . Alert | -11 -10 -10 -9 -9 -9 -8 -8 -7 -6 -6 -6 -6 -5 -5 -5 -5 -5 -5 -4 -3 -3 -2 ------- Run | Scr Mat Min Mat Min Exi Min Mat Fac Fac Low Low Zio Pro Fac Ext Cet Arc Hub Fac Res Tes Res Peak Influence 1005 | 40 155 126 370 55 . 229 496 504 12 . . . . 117 204 357 232 1005 288 430 313 313 Initial 232 | . 19 9 . 35 . . . 64 . . . . . . 13 85 15 . 232 58 46 29 Average 156 | 15 51 39 116 47 . 59 166 225 8 . . . . 48 99 186 148 420 165 81 90 135 Maximum Alert Level 3 | . . . 1 . . 1 2 2 . . . . . . 1 1 1 3 1 2 1 1 Low Security (%) 71 | 100 100 100 82 100 . 84 71 46 100 . . . . 100 84 55 80 25 52 94 83 69 Level 1 19 | . . . 17 . . 15 21 37 . . . . . . 15 44 19 24 47 2 16 30 Level 2 5 | . . . . . . . 6 16 . . . . . . . . . 29 . 2 . . Level 3 3 | . . . . . . . . . . . . . . . . . . 21 . . . . Level 4 . | . . . . . . . . . . . . . . . . . . . . . . . Level 5 . | . . . . . . . . . . . . . . . . . . . . . . . High Security . | . . . . . . . . . . . . . . . . . . . . . . . Max Security . | . . . . . . . . . . . . . . . . . . . . . . . Squads Dispatched 66 | . 1 . 5 . . . 7 9 . . . . . 4 2 . . 8 4 10 12 4 Investigation 20 | . 1 . 3 . . . 3 4 . . . . . 1 . . . 1 2 4 . 1 Extermination 19 | . . . . . . . . 2 . . . . . 1 . . . 3 2 3 6 2 Reinforcement 16 | . . . 2 . . . 2 . . . . . . . 2 . . 1 . 3 5 1 Assault 3 | . . . . . . . 1 . . . . . . . . . . 2 . . . . Garrison 8 | . . . . . . . 1 3 . . . . . 2 . . . 1 . . 1 . Intercept . | . . . . . . . . . . . . . . . . . . . . . . . Construction Impeded 3 | . . . . . . . . . . . . . . . 1 . . 1 . 1 . . Haulers Reinforced 1 | . . . . . . . . . . . . . . . . . . . . 1 . . Stealth | -11 -10 -10 -9 -9 -9 -8 -8 -7 -6 -6 -6 -6 -5 -5 -5 -5 -5 -5 -4 -3 -3 -2 --------- Run | Scr Mat Min Mat Min Exi Min Mat Fac Fac Low Low Zio Pro Fac Ext Cet Arc Hub Fac Res Tes Res Distress Signals 22 | . 1 . 2 . . . 4 1 . . . . . . 1 2 . 2 . 4 2 3 Communications Jammed . | . . . . . . . . . . . . . . . . . . . . . . . Distress Signals . | . . . . . . . . . . . . . . . . . . . . . . . Times Spotted 430 | . 11 6 42 . . 11 54 26 . 9 13 . 7 9 7 25 7 64 13 44 48 34 Peak Tracking Total 11 | . 4 2 6 . . 4 6 3 . 6 4 . 3 3 2 6 1 8 2 11 4 5 Tactical Retreats 13 | . 1 . 2 . . . 3 3 . . 1 . . . . . . 2 . 1 . . Traps | -11 -10 -10 -9 -9 -9 -8 -8 -7 -6 -6 -6 -6 -5 -5 -5 -5 -5 -5 -4 -3 -3 -2 ------- Run | Scr Mat Min Mat Min Exi Min Mat Fac Fac Low Low Zio Pro Fac Ext Cet Arc Hub Fac Res Tes Res Traps Triggered 16 | . 4 . 2 . . . 2 1 . . . . . . . . . 1 2 1 1 2 Indirectly . | . . . . . . . . . . . . . . . . . . . . . . . Trap Hack Attempts . | . . . . . . . . . . . . . . . . . . . . . . . Triggered . | . . . . . . . . . . . . . . . . . . . . . . . Disarmed . | . . . . . . . . . . . . . . . . . . . . . . . Reprogrammed 4 | . 4 . . . . . . . . . . . . . . . . . . . . . Reused 1 | . 1 . . . . . . . . . . . . . . . . . . . . . Traps Extracted . | . . . . . . . . . . . . . . . . . . . . . . . Installed . | . . . . . . . . . . . . . . . . . . . . . . . Triggered 1 | . 1 . . . . . . . . . . . . . . . . . . . . . Machines | -11 -10 -10 -9 -9 -9 -8 -8 -7 -6 -6 -6 -6 -5 -5 -5 -5 -5 -5 -4 -3 -3 -2 ---------- Run | Scr Mat Min Mat Min Exi Min Mat Fac Fac Low Low Zio Pro Fac Ext Cet Arc Hub Fac Res Tes Res Machines Disabled 54 | . . . 1 . . 1 1 . . . . . . . 3 . 8 37 1 1 1 . Max in Single Turn 15 | . . . 1 . . 1 1 . . . . . . . 2 . 2 15 1 1 1 . Garrison Access 6 | . . . . . . . 1 . 1 . . . . . . . . 1 1 . 1 1 Network Hub 4 | . . . . . . . . . . . . . . . . . . 4 . . . . Energy Cycler 3 | . . . . . . . . . . . . . . . 3 . . . . . . . Machines Sabotaged . | . . . . . . . . . . . . . . . . . . . . . . . Garrisons Compromised . | . . . . . . . . . . . . . . . . . . . . . . . Overloaded Fab Kills . | . . . . . . . . . . . . . . . . . . . . . . . Fab Network Shutdowns . | . . . . . . . . . . . . . . . . . . . . . . . Hacking | -11 -10 -10 -9 -9 -9 -8 -8 -7 -6 -6 -6 -6 -5 -5 -5 -5 -5 -5 -4 -3 -3 -2 --------- Run | Scr Mat Min Mat Min Exi Min Mat Fac Fac Low Low Zio Pro Fac Ext Cet Arc Hub Fac Res Tes Res Machines Accessed 50 | . 7 1 10 . 4 . 9 5 3 1 2 . 1 . . . . 1 2 1 2 1 Terminals 31 | . 6 1 9 . . . 8 4 1 1 . . 1 . . . . . . . . . Fabricators 4 | . . . . . . . . 1 1 . . . . . . . . . . 1 1 . Repair Stations 2 | . . . . . . . 1 . . . . . . . . . . . 1 . . . Recycling Units 2 | . 1 . 1 . . . . . . . . . . . . . . . . . . . Scanalyzers . | . . . . . . . . . . . . . . . . . . . . . . . Garrison Access 5 | . . . . . . . . . 1 . . . . . . . . 1 1 . 1 1 Total Hacks 219 | . 31 7 38 . 49 . 32 25 6 4 4 . 1 . . . . 3 6 4 6 3 Successful 175 | . 22 5 33 . 49 . 24 18 5 4 4 . 1 . . . . 1 3 2 3 1 Failed 44 | . 9 2 5 . . . 8 7 1 . . . . . . . . 2 3 2 3 2 Catastrophic 1 | . 1 . . . . . . . . . . . . . . . . . . . . . Database Lockouts . | . . . . . . . . . . . . . . . . . . . . . . . Manual 111 | . . . . . 1 . . . . . . 2 1 7 11 11 1 36 3 6 24 8 Terminals 129 | . 30 7 36 . . . 30 19 2 4 . . 1 . . . . . . . . . Fabricators 16 | . . . . . . . . 6 3 . . . . . . . . . . 4 3 . Repair Stations 5 | . . . . . . . 2 . . . . . . . . . . . 3 . . . Recycling Units 3 | . 1 . 2 . . . . . . . . . . . . . . . . . . . Scanalyzers . | . . . . . . . . . . . . . . . . . . . . . . . Garrison Access 13 | . . . . . . . . . 1 . . . . . . . . 3 3 . 3 3 Terminal Hacks 152 | . 21 5 32 . 49 . 22 13 1 4 4 . 1 . . . . . . . . . Record 101 | . 10 5 13 . 49 . 9 7 . 4 3 . 1 . . . . . . . . . Part Schematic 1 | . . . . . . . . . 1 . . . . . . . . . . . . . Robot Schematic 1 | . . . . . . . . 1 . . . . . . . . . . . . . . Robot Analysis 4 | . . . 2 . . . 1 1 . . . . . . . . . . . . . . Prototype ID Bank 9 | . 3 . 2 . . . 3 1 . . . . . . . . . . . . . . Open Door 1 | . . . . . . . . . . . 1 . . . . . . . . . . . Branch Access Points 2 | . . . 1 . . . 1 . . . . . . . . . . . . . . . Emergency Access Points 2 | . . . 1 . . . . 1 . . . . . . . . . . . . . . Terminal Index 1 | . . . . . . . 1 . . . . . . . . . . . . . . . Alert Level 2 | . . . 2 . . . . . . . . . . . . . . . . . . . Unreport Threat 1 | . 1 . . . . . . . . . . . . . . . . . . . . . Locate Traps 5 | . 2 . 2 . . . 1 . . . . . . . . . . . . . . . Reprogram Traps 1 | . 1 . . . . . . . . . . . . . . . . . . . . . Dispatch Records 2 | . . . 1 . . . . 1 . . . . . . . . . . . . . . Maintenance Status 2 | . . . 1 . . . 1 . . . . . . . . . . . . . . . Security Status 2 | . . . 1 . . . 1 . . . . . . . . . . . . . . . Patrol Status 1 | . . . 1 . . . . . . . . . . . . . . . . . . . Transport Status 1 | . . . 1 . . . . . . . . . . . . . . . . . . . Investigation Status 1 | . . . 1 . . . . . . . . . . . . . . . . . . . Recall Assault 1 | . 1 . . . . . . . . . . . . . . . . . . . . . Hauler Manifests 3 | . 1 . 1 . . . . 1 . . . . . . . . . . . . . . Registered Components 1 | . . . . . . . 1 . . . . . . . . . . . . . . . Registered Prototypes 1 | . 1 . . . . . . . . . . . . . . . . . . . . . Zone Layout 6 | . 1 . 2 . . . 3 . . . . . . . . . . . . . . . Fabricator Hacks 12 | . . . . . . . . 5 3 . . . . . . . . . . 2 2 . Network Status 2 | . . . . . . . . 1 1 . . . . . . . . . . . . . Load Schematic 4 | . . . . . . . . 1 1 . . . . . . . . . . 1 1 . Build 6 | . . . . . . . . 3 1 . . . . . . . . . . 1 1 . Repair Station Hacks 4 | . . . . . . . 2 . . . . . . . . . . . 2 . . . Scan Component 2 | . . . . . . . 1 . . . . . . . . . . . 1 . . . Repair 2 | . . . . . . . 1 . . . . . . . . . . . 1 . . . Recycling Unit Hacks 2 | . 1 . 1 . . . . . . . . . . . . . . . . . . . Retrieve Components 2 | . 1 . 1 . . . . . . . . . . . . . . . . . . . Scanalyzer . | . . . . . . . . . . . . . . . . . . . . . . . Garrison Access Hacks 5 | . . . . . . . . . 1 . . . . . . . . 1 1 . 1 1 Seal Access 5 | . . . . . . . . . 1 . . . . . . . . 1 1 . 1 1 Unauthorized Hacks . | . . . . . . . . . . . . . . . . . . . . . . . Terminals . | . . . . . . . . . . . . . . . . . . . . . . . Fabricators . | . . . . . . . . . . . . . . . . . . . . . . . Repair Stations . | . . . . . . . . . . . . . . . . . . . . . . . Recycling Units . | . . . . . . . . . . . . . . . . . . . . . . . Scanalyzers . | . . . . . . . . . . . . . . . . . . . . . . . Garrison Access . | . . . . . . . . . . . . . . . . . . . . . . . Data Cores Recovered 2 | . . . 1 . . . . . . . . . . . . . . . 1 . . . Used 1 | . . . 1 . . . . . . . . . . . . . . . . . . . Hacking Detections 32 | . 7 1 7 . . . 6 5 2 1 . . . . . . . . 1 . 1 1 Full Trace Events 19 | . 4 1 5 . . . 5 4 . . . . . . . . . . . . . . Feedback Events 1 | . . . . . . . . 1 . . . . . . . . . . . . . . Corruption 1 | . . . . . . . . 1 . . . . . . . . . . . . . . Feedback Blocked . | . . . . . . . . . . . . . . . . . . . . . . . Robot Schematics Acquired 20 | . . . . . . . . 1 . . . . . . . 5 . 9 . . 5 . Robots Built 7 | . . . . . . . . 2 . . . . . . . . . . . 3 2 . Matter 975 | . . . . . . . . 438 . . . . . . . . . . . 285 252 . Time 451 | . . . . . . . . 232 . . . . . . . . . . . 152 67 . Total Robot Build Rating 29 | . . . . . . . . 6 . . . . . . . . . . . 15 8 . Part Schematics Acquired 24 | . . . . . . . . . 1 . . . . . . . . 13 . . 10 . Parts Built 2 | . . . . . . . . . 2 . . . . . . . . . . . . . Matter 234 | . . . . . . . . . 234 . . . . . . . . . . . . . Time 39 | . . . . . . . . . 39 . . . . . . . . . . . . . Total Part Build Rating 14 | . . . . . . . . . 14 . . . . . . . . . . . . . Parts Repaired 2 | . . . . . . . 1 . . . . . . . . . . . 1 . . . Time 82 | . . . . . . . 38 . . . . . . . . . . . 44 . . . Parts Recycled . | . . . . . . . . . . . . . . . . . . . . . . . Recycled Matter . | . . . . . . . . . . . . . . . . . . . . . . . Retrieved Matter . | . . . . . . . . . . . . . . . . . . . . . . . Retrieved Components 11 | . 1 . 10 . . . . . . . . . . . . . . . . . . . Parts Scanalyzed . | . . . . . . . . . . . . . . . . . . . . . . . Part Schematics Acquired . | . . . . . . . . . . . . . . . . . . . . . . . Parts Damaged . | . . . . . . . . . . . . . . . . . . . . . . . Bothacking | -11 -10 -10 -9 -9 -9 -8 -8 -7 -6 -6 -6 -6 -5 -5 -5 -5 -5 -5 -4 -3 -3 -2 ------------ Run | Scr Mat Min Mat Min Exi Min Mat Fac Fac Low Low Zio Pro Fac Ext Cet Arc Hub Fac Res Tes Res Used RIF Installer . | . . . . . . . . . . . . . . . . . . . . . . . Robots Hacked . | . . . . . . . . . . . . . . . . . . . . . . . Non-combat . | . . . . . . . . . . . . . . . . . . . . . . . Combat . | . . . . . . . . . . . . . . . . . . . . . . . Robot Hacks Applied . | . . . . . . . . . . . . . . . . . . . . . . . Relay Couplers Released 3 | . . . . . . . 2 . . . . . . . . . . . . . . 1 Machine Destruction 2 | . . . . . . . 2 . . . . . . . . . . . . . . . Programmers 1 | . . . . . . . . . . . . . . . . . . . . . . 1 Robots Rewired 1 | . . . . . . . . . . . . . . . . . . . . . 1 . Allies Hacked 9 | . . . . . . . . . . . . . . . . . . . . 8 1 . Hacks Repelled . | . . . . . . . . . . . . . . . . . . . . . . . Allies | -11 -10 -10 -9 -9 -9 -8 -8 -7 -6 -6 -6 -6 -5 -5 -5 -5 -5 -5 -4 -3 -3 -2 -------- Run | Scr Mat Min Mat Min Exi Min Mat Fac Fac Low Low Zio Pro Fac Ext Cet Arc Hub Fac Res Tes Res Total Allies 50 | . . 3 . . . . . 2 . . . 10 . 8 9 . . . . 13 5 . Largest Group 20 | . . 3 3 . . . . 2 1 1 . 10 10 14 20 . . . . 6 3 . Highest-Rated Group 827 | . . 40 40 . . . . 52 26 26 . 450 450 421 827 . . . . 418 248 . Highest-Rated Ally 157 | . . 16 16 . . . . 26 26 26 . 94 94 39 70 . . . . 157 157 . Zionite Dispatches 6 | . . . . . . . . . . . . . . 2 3 . . . . 1 . . Light 2 | . . . . . . . . . . . . . . . 2 . . . . . . . Fire 2 | . . . . . . . . . . . . . . 2 . . . . . . . . Hero 1 | . . . . . . . . . . . . . . . . . . . . 1 . . Melee Resupply 1 | . . . . . . . . . . . . . . . 1 . . . . . . . Total Orders 3 | . . . . . . . . . . . . . . . 2 . . . . 1 . . STAY 1 | . . . . . . . . . . . . . . . . . . . . 1 . . ROAM 1 | . . . . . . . . . . . . . . . 1 . . . . . . . DROP 1 | . . . . . . . . . . . . . . . 1 . . . . . . . Ally Attacks 219 | . . 6 4 . . . . . . . . . 51 19 12 . . . . 72 55 . Total Damage 7803 | . . 74 41 . . . . . . . . . 2079 432 98 . . . . 2900 2179 . Kills 39 | . . 2 . . . . . . . . . . 7 6 1 . . . . 15 8 . Allies Corrupted 1 | . . . . . . . . . . . . . . . 1 . . . . . . . Allies Melted . | . . . . . . . . . . . . . . . . . . . . . . . Intel | -11 -10 -10 -9 -9 -9 -8 -8 -7 -6 -6 -6 -6 -5 -5 -5 -5 -5 -5 -4 -3 -3 -2 ------- Run | Scr Mat Min Mat Min Exi Min Mat Fac Fac Low Low Zio Pro Fac Ext Cet Arc Hub Fac Res Tes Res Robot Analysis Total 4 | . . . 2 . . . 1 1 . . . . . . . . . . . . . . Derelict Logs Recovered 10 | . . 2 . . . . . . . 2 3 2 1 . . . . . . . . . Drone Launches . | . . . . . . . . . . . . . . . . . . . . . . . Drone Recoveries . | . . . . . . . . . . . . . . . . . . . . . . . Zionite Intel Received 25 | . . . . . . . . . . . . . . 1 . 3 . 11 . 1 7 2 Branch Access 2 | . . . . . . . . . . . . . . . . . . . . 1 1 . Emergency Access 3 | . . . . . . . . . . . . . . . . 1 . 1 . . . 1 Guard Positions 1 | . . . . . . . . . . . . . . . . . . 1 . . . . Component Stockpiles 3 | . . . . . . . . . . . . . . . . 1 . 1 . . 1 . Prototype Stockpiles 2 | . . . . . . . . . . . . . . . . . . 1 . . 1 . Component Schematics 1 | . . . . . . . . . . . . . . . . . . 1 . . . . Prototype Schematics 1 | . . . . . . . . . . . . . . . . . . . . . 1 . Unaware Schematics 4 | . . . . . . . . . . . . . . . . 1 . 2 . . 1 . Unaware Analyses 1 | . . . . . . . . . . . . . . . . . . 1 . . . . Trap Installations 2 | . . . . . . . . . . . . . . . . . . 1 . . 1 . Active Garrisons 2 | . . . . . . . . . . . . . . . . . . 1 . . . 1 Depthwide Sectors/0 2 | . . . . . . . . . . . . . . 1 . . . 1 . . . . Depthwide Sectors/-1 1 | . . . . . . . . . . . . . . . . . . . . . 1 . Exploration | -11 -10 -10 -9 -9 -9 -8 -8 -7 -6 -6 -6 -6 -5 -5 -5 -5 -5 -5 -4 -3 -3 -2 ------------- Run | Scr Mat Min Mat Min Exi Min Mat Fac Fac Low Low Zio Pro Fac Ext Cet Arc Hub Fac Res Tes Res Turns Passed 29020 | 155 762 1138 1720 90 1048 1071 2200 1251 198 1875 1861 1696 1631 869 797 902 423 2893 1064 1654 2580 1142 Spaces Moved 14508 | 76 428 659 850 45 656 610 1076 524 95 1109 1082 1029 979 450 399 426 189 1074 414 743 1147 448 Core 16 | 16 . . . . . . . . . . . . . . . . . . . . . . Treads 14492 | 60 428 659 850 45 656 610 1076 524 95 1109 1082 1029 979 450 399 426 189 1074 414 743 1147 448 Legs . | . . . . . . . . . . . . . . . . . . . . . . . Wheels . | . . . . . . . . . . . . . . . . . . . . . . . Hover . | . . . . . . . . . . . . . . . . . . . . . . . Flight . | . . . . . . . . . . . . . . . . . . . . . . . Fastest Speed 50 | 50 160 160 160 160 160 160 160 160 160 160 160 160 160 160 162 160 160 160 160 163 163 163 Average Speed 161 | 144 160 160 160 160 160 160 160 160 160 160 160 160 160 160 162 161 160 171 162 163 163 163 Slowest Speed 180 | 160 160 160 160 160 160 160 160 160 160 160 160 160 160 162 162 162 160 180 180 163 163 163 Overloaded Moves . | . . . . . . . . . . . . . . . . . . . . . . . Propulsion Burnouts . | . . . . . . . . . . . . . . . . . . . . . . . Robots Hopped . | . . . . . . . . . . . . . . . . . . . . . . . Cave-ins Triggered . | . . . . . . . . . . . . . . . . . . . . . . . Exploration Rate (%) 64 | 5 80 99 94 20 91 98 92 20 3 99 98 91 99 11 62 78 92 96 14 21 95 14 Regions Visited 22 Branch Regions 13 Pre-discovered Areas 27 | . . 1 . . 1 . . . . 1 2 2 . 9 . . . 9 . . 2 . Known Exits Taken 22 | 1 1 1 1 1 1 1 1 1 1 1 1 1 1 1 1 1 1 1 1 1 1 . Unknown Exits Taken . | . . . . . . . . . . . . . . . . . . . . . . . Scrap Searched 12 | . . . . . . . . . . 2 7 2 1 . . . . . . . . . Spaces Dug . | . . . . . . . . . . . . . . . . . . . . . . . Terrain Destroyed 702 | . . . . . . 1 . . . . . . . . 40 . . 643 4 11 1 2 Melee . | . . . . . . . . . . . . . . . . . . . . . . . Projectile 4 | . . . . . . 1 . . . . . . . . . . . . . . 1 2 AOE 698 | . . . . . . . . . . . . . . . 40 . . 643 4 11 . . Terrain Rammed . | . . . . . . . . . . . . . . . . . . . . . . . Walls Destroyed . | . . . . . . . . . . . . . . . . . . . . . . . Machines Disabled . | . . . . . . . . . . . . . . . . . . . . . . . Actions | -11 -10 -10 -9 -9 -9 -8 -8 -7 -6 -6 -6 -6 -5 -5 -5 -5 -5 -5 -4 -3 -3 -2 --------- Run | Scr Mat Min Mat Min Exi Min Mat Fac Fac Low Low Zio Pro Fac Ext Cet Arc Hub Fac Res Tes Res Total 18419 | 97 466 716 1074 59 655 662 1338 838 143 1176 1170 1078 1029 587 512 542 244 1840 749 1079 1649 716 Wait 2531 | . 11 35 122 11 . 22 83 268 39 44 46 27 28 124 68 36 25 529 274 248 309 182 Move 14486 | 75 427 658 849 44 655 609 1075 523 94 1108 1081 1028 978 449 398 425 188 1073 413 742 1146 448 Hop . | . . . . . . . . . . . . . . . . . . . . . . . Pick Up 43 | 3 2 . 7 . . 1 15 . 2 1 1 3 2 1 . . . 1 . 2 2 . Fast Attach 115 | 5 2 . 5 . . . 9 2 . . . 7 2 . 10 4 . 23 11 4 26 5 Attach 20 | 3 . . 5 1 . 1 3 . 5 . 1 . . . . . . . . 1 . . Detach 11 | . . . 1 . . . . 1 2 . . . . . 1 1 . 2 . . 3 . Swap 49 | . . . 8 . . . 9 1 . 2 3 4 1 1 3 2 . 3 . . 11 1 Drop 139 | . . . 12 . . . 22 2 1 1 2 9 4 2 12 6 . 23 10 5 24 4 Fire 593 | 11 19 13 53 1 . 15 78 33 . 11 14 . 5 4 13 34 22 97 18 36 68 48 Melee . | . . . . . . . . . . . . . . . . . . . . . . . Ram 1 | . . . . . . . . . . . . . . . . . . 1 . . . . Kick . | . . . . . . . . . . . . . . . . . . . . . . . Crush 21 | . 1 1 . 2 . 3 6 . . . . . . . 1 . . 3 3 . . 1 Escape Stasis 1 | . . . . . . . . . . . . . . . . . . . . . 1 . Rewire 4 | . . . . . . . . . . . . . . . . . . . . 1 3 . Trap . | . . . . . . . . . . . . . . . . . . . . . . . Miscellaneous 405 | . 4 9 12 . . 11 38 8 . 9 22 . 9 6 6 34 9 85 20 40 56 27 Route ------- -11/Scrapyard -10/Materials (discovered 4 exits: *Mat x3 / *Min) -10/Mines (discovered 2 exits: *Mat x2) -9/Materials (discovered 5 exits: *Mat x3 / *Min x2) -9/Mines (discovered 2 exits: *Mat / *Exi) -9/Exiles (discovered 2 exits: *Min x2) -8/Mines (discovered 2 exits: *Mat x2) -8/Materials (discovered 2 exits: *Fac x2) -7/Factory (discovered 2 exits: *Fac x2) -6/Factory -6/Lower Caves -6/Lower Caves (discovered 2 exits: *Fac / *Zio) -6/Zion (discovered 2 exits: Dee / *Pro) -5/Proximity Caves -5/Factory (discovered 4 exits: Fac x2 / *Upp / *Ext) -5/Extension (discovered 3 exits: *Fac x2 / *Cet) -5/Cetus (discovered 3 exits: *Fac x2 / *Arc) -5/Archives (discovered 3 exits: *Fac / *Hub x2) -5/Hub_04(d) (discovered 4 exits: *Fac x4) -4/Factory -3/Research (discovered 3 exits: Arm / *Tes x2) -3/Testing -2/Research History --------- Turn | Location | Event 6 | -11/Scrapyard | Identified exit to Materials 6 | -11/Scrapyard | Discovered exit to Materials (range 16) 10 | -11/Scrapyard | Upgraded with Power slot (x1) 10 | -11/Scrapyard | Upgraded with Propulsion slot (x1) 10 | -11/Scrapyard | Upgraded with Utility slot (x1) 10 | -11/Scrapyard | Upgraded with Weapon slot (x1) 156 | -11/Scrapyard | Entered Materials 305 | -10/Materials | Identified exit to Materials 305 | -10/Materials | Discovered exit to Materials (range 18) 309 | -10/Materials | Build established: Hacker-Mutant 603 | -10/Materials | Discovered exit to Materials (range 14) 729 | -10/Materials | Discovered exit to Materials (range 3) 758 | -10/Materials | Identified exit to Mines 758 | -10/Materials | Discovered exit to Mines (range 12) 918 | -10/Materials | Entered Mines 943 | -10/Mines | Reached level 2 957 | -10/Mines | Upgraded with Utility slot (x1) 1058 | -10/Mines | Assisted by bots powering up and referring to "LRC-V3" 1076 | -10/Mines | Discovered exit to Materials (range 7) 1143 | -10/Mines | Discovered exit to Materials (range 5) 1146 | -10/Mines | Learned location of Zion (-6) 1437 | -10/Mines | Received a Rocket Launcher from a helpful Derelict 2056 | -10/Mines | Entered Materials 2056 | -9/Materials | Accompanied by 3 allies 2057 | -9/Materials | Identified exit to Mines 2058 | -9/Materials | Reached level 3 2058 | -9/Materials | Reached level 4 2061 | -9/Materials | Upgraded with Utility slot (x1) 2061 | -9/Materials | Upgraded with Weapon slot (x2) 2366 | -9/Materials | Build established: Hacker-Gunner 2403 | -9/Materials | Reached level 5 2427 | -9/Materials | Upgraded with Weapon slot (x1) 2681 | -9/Materials | Identified exit to Materials 2681 | -9/Materials | Discovered exit to Materials (range 19) 3095 | -9/Materials | Reached level 6 3195 | -9/Materials | Upgraded with Power slot (x1) 3195 | -9/Materials | Upgraded with Propulsion slot (x1) 3228 | -9/Materials | Discovered exit to Materials (range 9) 3646 | -9/Materials | Discovered exit to Materials (range 10) 3776 | -9/Materials | Entered Mines 3777 | -9/Mines | Assembled infested the area 3778 | -9/Mines | Reached level 7 3781 | -9/Mines | Upgraded with Utility slot (x1) 3802 | -9/Mines | Met 8R-AWN 3805 | -9/Mines | Discovered exit to Materials (range 13) 3859 | -9/Mines | Identified exit to Exiles 3859 | -9/Mines | Discovered exit to Exiles (range 5) 3866 | -9/Mines | Entered Exiles 3895 | -9/Exiles | Identified exit to Mines 3895 | -9/Exiles | Discovered exit to Mines (range 14) 3937 | -9/Exiles | Welcomed by 8R-AWN 3962 | -9/Exiles | Met EX-HEX 4033 | -9/Exiles | Met EX-BIN 4199 | -9/Exiles | Met EX-DEC 4302 | -9/Exiles | Discovered exit to Mines (range 15) 4429 | -9/Exiles | Visited The Gauntlet 4914 | -9/Exiles | Entered Mines 4989 | -8/Mines | Reached level 8 5154 | -8/Mines | Discovered exit to Materials (range 8) 5590 | -8/Mines | Discovered exit to Materials (range 7) 5985 | -8/Mines | Entered Materials 5987 | -8/Materials | Reached level 9 6164 | -8/Materials | Upgraded with Propulsion slot (x1) 6164 | -8/Materials | Upgraded with Utility slot (x1) 6204 | -8/Materials | Reached level 10 6377 | -8/Materials | Build established: Scavenger-Gunner 6801 | -8/Materials | Reached level 11 7029 | -8/Materials | Identified exit to Factory 7029 | -8/Materials | Discovered exit to Factory (range 5) 7134 | -8/Materials | Repaired Cryofiber Web 7281 | -8/Materials | Build established: Hacker-Gunner 7533 | -8/Materials | Reached level 12 7542 | -8/Materials | Upgraded with Weapon slot (x1) 7563 | -8/Materials | Discovered exit to Factory (range 18) 7746 | -8/Materials | Garrison activated, responded to threat 7845 | -8/Materials | Build established: Hacker-Executioner 8185 | -8/Materials | Entered Factory 8187 | -7/Factory | Reached level 13 8192 | -7/Factory | Upgraded with Utility slot (x1) 8304 | -7/Factory | Identified exit to Factory 8304 | -7/Factory | Discovered exit to Factory (range 16) 8306 | -7/Factory | Garrison activated, responded to threat 8315 | -7/Factory | Reached level 14 8896 | -7/Factory | Reached level 15 9052 | -7/Factory | Fabricated O-24 Administrator (x1) 9168 | -7/Factory | Fabricated O-24 Administrator (x1) 9393 | -7/Factory | Discovered exit to Factory (range 17) 9436 | -7/Factory | Entered another Factory area 9436 | -6/Factory | Accompanied by 1 ally 9438 | -6/Factory | Reached level 16 9456 | -6/Factory | Upgraded with Utility slot (x1) 9456 | -6/Factory | Upgraded with Weapon slot (x1) 9539 | -6/Factory | Fabricated Adv. Thermal Generator (x2) 9606 | -6/Factory | Identified exit to Lower Caves 9606 | -6/Factory | Discovered exit to Lower Caves (range 8) 9634 | -6/Factory | Entered Lower Caves 9634 | -6/Lower Caves | Accompanied by 1 ally 9663 | -6/Lower Caves | Learned Factory stockpile data 9749 | -6/Lower Caves | Build established: Pyromaniac-Executioner 9861 | -6/Lower Caves | Attracted the attention of an 0b10 base 9876 | -6/Lower Caves | Core integrity fell below 50% 9894 | -6/Lower Caves | Reached level 17 9915 | -6/Lower Caves | Destroyed 7 combat bots 9964 | -6/Lower Caves | Learned 8 Factory zone layouts 9964 | -6/Lower Caves | Learned 6 Upper Caves zone layouts 9964 | -6/Lower Caves | Learned Extension emergency access door positions 11043 | -6/Lower Caves | Identified exit to Lower Caves 11043 | -6/Lower Caves | Discovered exit to Lower Caves (range 11) 11509 | -6/Lower Caves | Entered another Lower Caves area 11632 | -6/Lower Caves | Encountered a Warlord checkpoint 12073 | -6/Lower Caves | Learned Factory terminal intel 12132 | -6/Lower Caves | Identified exit to Zion 12132 | -6/Lower Caves | Discovered exit to Zion (range 17) 12305 | -6/Lower Caves | Attracted the attention of an 0b10 checkpoint 12653 | -6/Lower Caves | Learned Factory trap positions 12875 | -6/Lower Caves | Identified exit to Factory 12875 | -6/Lower Caves | Discovered exit to Factory (range 16) 12961 | -6/Lower Caves | Reached level 18 12996 | -6/Lower Caves | Learned Factory garrison access intel 12996 | -6/Lower Caves | Learned Armory trap positions 13291 | -6/Lower Caves | Build established: Scavenger-Executioner 13367 | -6/Lower Caves | Upgraded with Utility slot (x1) 13370 | -6/Lower Caves | Entered Zion 13527 | -6/Zion | Identified exit to Proximity Caves 13527 | -6/Zion | Discovered exit to Proximity Caves (range 18) 13628 | -6/Zion | Given the Hacking Drone Bay 13647 | -6/Zion | Found Prototype Device 13648 | -6/Zion | Identified Hacking Drone Bay 13772 | -6/Zion | Found Prototype Device 13772 | -6/Zion | Identified Phasing AFG 13812 | -6/Zion | Given A8's code to call for help 13941 | -6/Zion | Learned Factory emergency access door positions 13989 | -6/Zion | Learned location of Armory (-3) 14100 | -6/Zion | Learned location of 1 exit from Factory 14172 | -6/Zion | Identified exit to Deep Caves 14207 | -6/Zion | Visited the Megawrench Repair Shop 14207 | -6/Zion | Megawrench repaired 16 parts 14271 | -6/Zion | Found Prototype Energy Gun 14271 | -6/Zion | Identified Storm Laser 14450 | -6/Zion | Gained Derelict followers 14488 | -6/Zion | Enhanced Grunt warped into view, answering call for help 14489 | -6/Zion | Enhanced Grunt warped into view, answering call for help 14658 | -6/Zion | Imprinted 14660 | -6/Zion | Declared Zion's savior 15066 | -6/Zion | Entered Proximity Caves 15066 | -5/Proximity Caves | Accompanied by 10 allies 15102 | -5/Proximity Caves | Spotted B-75 Beast 15144 | -5/Proximity Caves | Reached level 19 15225 | -5/Proximity Caves | Learned Factory emergency access door positions 15285 | -5/Proximity Caves | Attracted the attention of an 0b10 checkpoint 15368 | -5/Proximity Caves | Found Prototype Device 15368 | -5/Proximity Caves | Identified Exp. Thermal Shield 15535 | -5/Proximity Caves | Discovered exit to Factory (range 7) 16697 | -5/Proximity Caves | Entered Factory 16697 | -5/Factory | Accompanied by 6 allies 16698 | -5/Factory | Identified exit to Factory 16699 | -5/Factory | Reached level 20 16700 | -5/Factory | Loaded intel: 114 trap records 16703 | -5/Factory | Loaded intel: 22 terminal locations 16704 | -5/Factory | Loaded intel: 3 garrison access locations 16797 | -5/Factory | Reached level 21 16806 | -5/Factory | Identified exit to Upper Caves 16806 | -5/Factory | Discovered exit to Upper Caves (range 7) 16940 | -5/Factory | Retrieved Zion intel report: Depthwide Sectors/0 17393 | -5/Factory | Zion Fire squad teleported in 17410 | -5/Factory | Garrison activated, responded to threat 17441 | -5/Factory | Zion Fire squad teleported in 17495 | -5/Factory | Identified exit to Extension 17495 | -5/Factory | Discovered exit to Extension (range 17) 17566 | -5/Factory | Entered Extension 17566 | -5/Extension | Accompanied by 14 allies 17627 | -5/Extension | Zion Light squad teleported in 17638 | -5/Extension | Zion Light squad teleported in 17753 | -5/Extension | Build established: Pyromaniac-Executioner 17776 | -5/Extension | Zion Melee Resupply teleported in 17809 | -5/Extension | Energy Cycler disabled 17809 | -5/Extension | Rescued a captive Derelict 17809 | -5/Extension | Rescued a captive Derelict 17809 | -5/Extension | Rescued a captive Derelict 17810 | -5/Extension | Rescued a captive Derelict 17810 | -5/Extension | Rescued a captive Derelict 17813 | -5/Extension | Rescued a captive Derelict 17814 | -5/Extension | Rescued a captive Derelict 17817 | -5/Extension | Rescued a captive Derelict 17914 | -5/Extension | Spotted B-75 Beast 18030 | -5/Extension | Destroyed B-75 Beast 18034 | -5/Extension | Spotted B-75 Beast 18041 | -5/Extension | Destroyed B-75 Beast 18049 | -5/Extension | Discovered exit to Factory (range 16) 18098 | -5/Extension | Reached level 22 18102 | -5/Extension | Upgraded with Power slot (x1) 18115 | -5/Extension | Extracted ID and sensor layout for unrecognized location from A7's data core 18152 | -5/Extension | Found Prototype Protection 18152 | -5/Extension | Identified Zio. Weapon Casing 18327 | -5/Extension | Identified exit to Cetus 18327 | -5/Extension | Discovered exit to Cetus (range 18) 18329 | -5/Extension | Discovered exit to Factory (range 17) 18363 | -5/Extension | Entered Cetus 18375 | -5/Cetus | Build established: Scavenger-Executioner 18386 | -5/Cetus | Spotted Cetus Guard 18386 | -5/Cetus | Spotted Cetus Guard 18387 | -5/Cetus | Destroyed Cetus Guard 18389 | -5/Cetus | Spotted Cetus Guard 18389 | -5/Cetus | Spotted Cetus Guard 18391 | -5/Cetus | Destroyed Cetus Guard 18403 | -5/Cetus | Destroyed Cetus Guard 18411 | -5/Cetus | Destroyed Cetus Guard 18517 | -5/Cetus | Discovered exit to Factory (range 17) 18649 | -5/Cetus | Retrieved Zion intel report: Emergency Access 18732 | -5/Cetus | Retrieved Zion intel report: Unaware Schematics 18740 | -5/Cetus | Retrieved Zion intel report: Component Stockpiles 18755 | -5/Cetus | Identified exit to Archives 18755 | -5/Cetus | Discovered exit to Archives (range 18) 18800 | -5/Cetus | Spotted Cetus Guard 18801 | -5/Cetus | Spotted Cetus Guard 18847 | -5/Cetus | Spotted Cetus Guard 18853 | -5/Cetus | Destroyed Cetus Guard 18855 | -5/Cetus | Spotted Cetus Guard 18861 | -5/Cetus | Destroyed Cetus Guard 18867 | -5/Cetus | Destroyed Cetus Guard 18875 | -5/Cetus | Destroyed Cetus Guard 18937 | -5/Cetus | Discovered exit to Factory (range 17) 18948 | -5/Cetus | Scared off Revision 17 19265 | -5/Cetus | Entered Archives 19384 | -5/Archives | Unable to access archive contents 19389 | -5/Archives | Identified exit to Hub_04(d) 19389 | -5/Archives | Discovered exit to Hub_04(d) (range 14) 19400 | -5/Archives | Discovered exit to Hub_04(d) (range 18) 19415 | -5/Archives | Discovered exit to Factory (range 17) 19688 | -5/Archives | Entered Hub_04(d) 19690 | -5/Hub_04(d) | Reached level 23 20190 | -5/Hub_04(d) | Network Hub disabled 20497 | -5/Hub_04(d) | Spotted Lightning 20497 | -5/Hub_04(d) | Spotted Lightning 20497 | -5/Hub_04(d) | Spotted Lightning 20503 | -5/Hub_04(d) | Destroyed Lightning 20507 | -5/Hub_04(d) | Destroyed Lightning 20527 | -5/Hub_04(d) | Destroyed Lightning 20541 | -5/Hub_04(d) | Found Prototype Device 20541 | -5/Hub_04(d) | Identified EM Dispersion Field 20544 | -5/Hub_04(d) | Found Prototype Device 20544 | -5/Hub_04(d) | Identified Exp. Phase Shifter 20548 | -5/Hub_04(d) | Destroyed 7 combat bots 20738 | -5/Hub_04(d) | Spotted Lightning 20744 | -5/Hub_04(d) | Spotted Lightning 20752 | -5/Hub_04(d) | Spotted Lightning 20755 | -5/Hub_04(d) | System corruption reached 10% 20756 | -5/Hub_04(d) | Core integrity fell below 50% 20757 | -5/Hub_04(d) | Destroyed Lightning 20765 | -5/Hub_04(d) | Destroyed Lightning 20771 | -5/Hub_04(d) | Destroyed Lightning 20792 | -5/Hub_04(d) | Network Hub disabled 20839 | -5/Hub_04(d) | Garrison activated, responded to threat 20955 | -5/Hub_04(d) | Retrieved Zion intel report: Emergency Access 20959 | -5/Hub_04(d) | Discovered exit to Factory (range 5) 20993 | -5/Hub_04(d) | Retrieved Zion intel report: Unaware Schematics 21153 | -5/Hub_04(d) | Retrieved Zion intel report: Component Stockpiles 21157 | -5/Hub_04(d) | Spotted Lightning 21157 | -5/Hub_04(d) | Spotted Lightning 21171 | -5/Hub_04(d) | Spotted Lightning 21198 | -5/Hub_04(d) | Destroyed Lightning 21238 | -5/Hub_04(d) | Destroyed Lightning 21246 | -5/Hub_04(d) | Destroyed Lightning 21379 | -5/Hub_04(d) | Network Hub disabled 21431 | -5/Hub_04(d) | Retrieved Zion intel report: Component Schematics 21451 | -5/Hub_04(d) | Discovered exit to Factory (range 17) 21488 | -5/Hub_04(d) | First assault squad dispatched 21525 | -5/Hub_04(d) | Spotted Lightning 21525 | -5/Hub_04(d) | Spotted Lightning 21527 | -5/Hub_04(d) | Spotted Lightning 21546 | -5/Hub_04(d) | Destroyed Lightning 21617 | -5/Hub_04(d) | Destroyed Lightning 21625 | -5/Hub_04(d) | Destroyed Lightning 21646 | -5/Hub_04(d) | Destroyed 7 combat bots 21678 | -5/Hub_04(d) | Found Prototype Processor 21678 | -5/Hub_04(d) | Identified Exp. Targeting Computer 21714 | -5/Hub_04(d) | Retrieved Zion intel report: Guard Positions 21726 | -5/Hub_04(d) | Retrieved Zion intel report: Trap Installations 21764 | -5/Hub_04(d) | Retrieved Zion intel report: Prototype Stockpiles 21805 | -5/Hub_04(d) | Retrieved Zion intel report: Unaware Schematics 21903 | -5/Hub_04(d) | Discovered exit to Factory (range 5) 21959 | -5/Hub_04(d) | Network Hub disabled 21959 | -5/Hub_04(d) | Reached level 24 21960 | -5/Hub_04(d) | System corruption reached 30% 22181 | -5/Hub_04(d) | Discovered exit to Factory (range 18) 22239 | -5/Hub_04(d) | Retrieved Zion intel report: Unaware Analyses 22516 | -5/Hub_04(d) | Retrieved Zion intel report: Active Garrisons 22547 | -5/Hub_04(d) | Retrieved Zion intel report: Depthwide Sectors/0 22581 | -5/Hub_04(d) | Entered Factory 22597 | -4/Factory | Upgraded with Propulsion slot (x1) 22782 | -4/Factory | Repaired Hrd. Heavy Armor Plating 23144 | -4/Factory | Build established: Generator-Executioner 23470 | -4/Factory | Reached level 25 23575 | -4/Factory | Identified exit to Research 23575 | -4/Factory | Discovered exit to Research (range 17) 23645 | -4/Factory | Entered Research 23647 | -3/Research | Reached level 26 23663 | -3/Research | Upgraded with Utility slot (x1) 23821 | -3/Research | Fabricated G-50 Soldier? 23972 | -3/Research | P-80 Master assimilated allied Soldier 8a 24232 | -3/Research | Reached level 27 25043 | -3/Research | Retrieved Zion intel report: Branch Access 25043 | -3/Research | Identified exit to Armory 25043 | -3/Research | Identified exit to Testing 25044 | -3/Research | Zion hero teleported in (ME-RLN) 25110 | -3/Research | ME-RLN assimilated hostile G-67 Veteran 25134 | -3/Research | ME-RLN assimilated hostile H-77 Assassin 25148 | -3/Research | ME-RLN assimilated hostile W-44 Eye 25163 | -3/Research | ME-RLN assimilated hostile Y-72 Warden 25170 | -3/Research | ME-RLN assimilated hostile G-67 Veteran 25245 | -3/Research | ME-RLN assimilated hostile G-67 Veteran 25299 | -3/Research | Entered Testing 25299 | -3/Testing | Accompanied by 2 allies (ME-RLN) 25301 | -3/Testing | Reached level 28 25334 | -3/Testing | ME-RLN assimilated hostile O-32 Director 25396 | -3/Testing | Retrieved Zion intel report: Depthwide Sectors/-1 25440 | -3/Testing | Retrieved Zion intel report: Prototype Schematics 25575 | -3/Testing | Spotted Striker 25575 | -3/Testing | Spotted Striker 25581 | -3/Testing | Spotted Alpha 7 25593 | -3/Testing | Destroyed Striker 25614 | -3/Testing | Destroyed Alpha 7 25680 | -3/Testing | Stole the SGEMP Prototype 25793 | -3/Testing | Retrieved Zion intel report: Unaware Schematics 25793 | -3/Testing | Spotted PY-A52HU9C3XP 25801 | -3/Testing | Destroyed PY-A52HU9C3XP 25916 | -3/Testing | Scanned by Researcher 25924 | -3/Testing | Reached level 29 25954 | -3/Testing | Found Prototype Energy Cannon 25954 | -3/Testing | Identified Null Cannon 26249 | -3/Testing | Retrieved Zion intel report: Branch Access 26254 | -3/Testing | Identified exit to Research 26254 | -3/Testing | Discovered exit to Research (range 19) 26280 | -3/Testing | Retrieved Zion intel report: Trap Installations 26285 | -3/Testing | Fabricated Y-54 Guardian? 26444 | -3/Testing | P-80 Master assimilated allied Guardian 8b 26476 | -3/Testing | Found Prototype Hackware 26476 | -3/Testing | Identified System Mapper 26497 | -3/Testing | Found Prototype Hackware 26497 | -3/Testing | Identified Ghost Barrier 26643 | -3/Testing | Found Antimissile System 26908 | -3/Testing | Found Prototype Device 26908 | -3/Testing | Identified EM Disruption Field 26940 | -3/Testing | Spotted Alpha 7 26943 | -3/Testing | Spotted 7I-J2K(L) 26943 | -3/Testing | Spotted 45-ZMK(L) 26949 | -3/Testing | Destroyed Alpha 7 26977 | -3/Testing | Rewired 7I-J2K(L) 27036 | -3/Testing | Garrison activated, responded to threat 27069 | -3/Testing | Retrieved Zion intel report: Prototype Stockpiles 27465 | -3/Testing | Found Prototype Energy Cannon 27465 | -3/Testing | Identified Hpw. Disruptor Cannon 27548 | -3/Testing | Spotted PG-2HF3L8MJTC 27560 | -3/Testing | Destroyed PG-2HF3L8MJTC 27656 | -3/Testing | Retrieved Zion intel report: Component Stockpiles 27859 | -3/Testing | Build established: Scavenger-Executioner 27879 | -3/Testing | Entered Research 27881 | -2/Research | Reached level 30 27973 | -2/Research | Found Prototype Protection 27973 | -2/Research | Identified Centrium Heavy Armor Plating 28089 | -2/Research | Retrieved Zion intel report: Active Garrisons 28267 | -2/Research | Reached level 31 28918 | -2/Research | Retrieved Zion intel report: Emergency Access 29001 | -2/Research | Core integrity fell below 50% 29011 | -2/Research | Core integrity fell below 20% 29021 | -2/Research | Destroyed by Q458-a with Molecular Scythe Last Messages --------------- 28998_ Q458-a follow-up attacks with Prototype Slashing Weapon. 28999_ Q001-v follow-up attacks with Prototype Slashing Weapon. 28999_ Quantum Reactor severed. 29000_ System corrupted: Prc. Phase Gun failed to cycle. 29003_ Q458-a follow-up attacks with Prototype Slashing Weapon. 29004_ Acquired Arm. Medium Treads. 29006_ Destroyed Lgt. Particle Reactor. 29006_ Q001-v destroyed. 29009_ Q458-a follow-up attacks with Prototype Slashing Weapon. 29012_ Adv. Beam Cannon severed. 29014_ Q458-a suffers critical hit. 29014_ Destroyed Unknown Leg. 29014_ Q458-a suffers critical hit. 29014_ Destroyed Lgt. Antimatter Reactor. 29016_ Protomatter-19 decays. 29016_ Q458-a follow-up attacks with Prototype Slashing Weapon. 29019_ Q458-a suffers critical hit. 29020_ System Backup Module purges 1% of system corruption (1%). 29021_ Q458-a follow-up attacks with Prototype Slashing Weapon. [Achievement: Torch] Map ----- +----------------------------------------------------+ | ?????????????????????????????????????????????????? | | ?????????????????????????????????????????????????? | | ?????????????????????????????????k???????????????? | | ????????b????????????????????????????????????????? | | ??????g??g???????????????????????????????????????? | | ?????????????????????????????????????????????????? | | ?????????k??????????????????????????????????k????? | | ???????????????????????????BB????????????????????? | | ???????????????????????????BB????????????????????? | | ???????????????????????#######???????????????????? | | ???????????????????????# ^ ????????????????????? | | ???????????????????????# ^ ????????????????????? | | ???????????????????????# ????????????????????+? | | ?????k?????????????????# ?????????????????????? | | ???????????????????????# ??????????????????????? | | ???????????????????????# ??????????????????????? | | ???????????????????????# ???????????????????????? | | ???????????????????????#* ???????????????????????? | | ???????????????????????#;#########???????????????? | | ??????????????????????# =% #???????????????? | | ??????????????????????# [= #???????????????? | | ? ?????????????????????# #???????????????? | | ????????????????????# ! #???????????????? | | " " ???????????????????# #???????????????? | | "R" ???????????????????# ]! #???????????????? | | ?"" ??????????????????# @Q=/ #???????????????? | | ??# ?????????????????# !%= #???????????????? | | ??# ???????##############;##########??????????? | | ??# ######## ## # #??????????? | | ??# # ## "" # #??????????? | | ??# # """"" ## "T + #??????????? | | ??# # """"" ## # #??????????? | | ??# + """"" ### ##""" #??????????? | | ??######## # #?# ##""F #??????????? | | ?????????# # #?# ##"" !!#??????????? | | ########## # #?# ##""" ! #??????????? | | !%############# ##""" #??????????? | | %%[[[* ## #??????????? | | [==!%[= ] ## #??????????? | | !###### ####?Y####???Y??????? | | #### ##########????# ! #???????????????????? | | ???# #?????????????# #???????????????????? | | ???# #?????????????# """R #???????????????????? | | #??# #?????????????#| """ #????????????????o??? | | ####+#########?????# """ #???????????????????? | | # ] #?????# #???????????????????? | | # #?????# #???????????????????? | | # ! """"" #?????# #???????????????????? | | # """"" #?????#t ???????????????????? | | # """"" #?????# ??????????????????? | +----------------------------------------------------+ Best States ------------- Heat Dissipation 186 Energy Generation 72 Energy Capacity 1085 Matter Stores 300 Matter Capacity 300 Sight Range 20 Robot Scan Range 33 Terrain Scan Density 10 Base Temperature (-) 150 Armor Coverage 975 Resistance: KI 55 Resistance: TH 65 Resistance: EX 55 Resistance: EM 35 Resistance: I 35 Resistance: S 35 Resistance: P 35 Phase Shifting 20 Evasion (%) 60 Targeting Accuracy 17 Armor Integrity Analysis 66 Recoil Reduction 5 Offensive Hacking 40 Defensive Hacking 5 Item Schematics ----------------- Adv. Thermal Generator | -6/Factory | Hacked Gravmag Array | -5/Hub_04(d) | Z-intel Imp. Integration Mediator | -5/Hub_04(d) | Z-intel Point Defense System | -5/Hub_04(d) | Z-intel Lgt. Angular Momentum Engine | -5/Hub_04(d) | Z-intel Imp. Field Recycling Unit | -5/Hub_04(d) | Z-intel Imp. Melee Analysis Suite | -5/Hub_04(d) | Z-intel Adv. Trap Extractor | -5/Hub_04(d) | Z-intel Recalibrator | -5/Hub_04(d) | Z-intel Plasma Cutter | -5/Hub_04(d) | Z-intel Imp. Kinecellerator | -5/Hub_04(d) | Z-intel Disruptor Cannon | -5/Hub_04(d) | Z-intel Adv. Reclamation Unit | -5/Hub_04(d) | Z-intel Flexi-carbon Leg | -5/Hub_04(d) | Z-intel Com. Mass Driver | -3/Testing | Z-intel Hvy. Antimatter Reactor | -3/Testing | Z-intel Exp. Reclamation Unit | -3/Testing | Z-intel Exp. Transmission Jammer | -3/Testing | Z-intel Tri-rail Accelerator | -3/Testing | Z-intel Exp. Thermal Shield | -3/Testing | Z-intel Hdn. Centrium Wheel | -3/Testing | Z-intel EM Dispersion Field | -3/Testing | Z-intel Exp. Myomer Leg | -3/Testing | Z-intel Ionic Axe | -3/Testing | Z-intel Robot Schematics ------------------ O-24 Administrator | -7/Factory | Hacked K-01 Serf | -5/Cetus | Z-intel B-48 Gladiator | -5/Cetus | Z-intel G-50 Soldier | -5/Cetus | Z-intel B-60 Warrior | -5/Cetus | Z-intel A-15 Conveyor | -5/Cetus | Z-intel Y-64 Sentinel | -5/Hub_04(d) | Z-intel A-02 Transporter | -5/Hub_04(d) | Z-intel T-07 Excavator | -5/Hub_04(d) | Z-intel R-10 Processor | -5/Hub_04(d) | Z-intel L-41 Fighter | -5/Hub_04(d) | Z-intel M-22 Extractor | -5/Hub_04(d) | Z-intel R-06 Scavenger | -5/Hub_04(d) | Z-intel S-27 Virus | -5/Hub_04(d) | Z-intel Y-54 Guardian | -5/Hub_04(d) | Z-intel M-36 Artificer | -3/Testing | Z-intel E-15 Imp | -3/Testing | Z-intel C-55 Analyst | -3/Testing | Z-intel B-74 Champion | -3/Testing | Z-intel S-43 Plague | -3/Testing | Z-intel Fabricated ------------ O-24 Administrator | x1 | -7/Factory O-24 Administrator | x1 | -7/Factory Adv. Thermal Generator | x2 | -6/Factory G-50 Soldier | x3 | -3/Research Y-54 Guardian | x2 | -3/Testing Alien Tech Used ----------------- None Achievements -------------- 404 Executioner Left-hand Path Pyromaniac Torch Challenges ------------ None RPGLIKE | -11 -10 -10 -9 -9 -9 -8 -8 -7 -6 -6 -6 -6 -5 -5 -5 -5 -5 -5 -4 -3 -3 -2 --------- Run | Scr Mat Min Mat Min Exi Min Mat Fac Fac Low Low Zio Pro Fac Ext Cet Arc Hub Fac Res Tes Res Levels Raised 30 | . . 1 4 1 . 1 4 3 1 1 1 . 1 2 1 . . 2 1 2 2 2 XP Earned 51731 | 6000 845 1299 6848 600 200 1750 5982 3771 1560 1373 1334 388 2418 2175 1009 1082 302 1810 1443 4285 2627 2630 XP Spent 50360 | 6000 . 1500 6000 1400 . . 6825 2000 4300 . 2600 . 2200 2900 1100 585 . 1550 1400 4300 2750 2950 Upgrades 89 | 23 . 3 6 1 . . 9 1 2 . 1 . 4 10 1 9 . 7 1 4 2 5 Power Slot 3 | 1 . . 1 . . . . . . . . . . . 1 . . . . . . . Propulsion Slot 4 | 1 . . 1 . . . 1 . . . . . . . . . . . 1 . . . Utility Slot 9 | 1 . 1 1 1 . . 1 1 1 . 1 . . . . . . . . 1 . . Weapon Slot 6 | 1 . . 3 . . . 1 . 1 . . . . . . . . . . . . . Core Integrity 9 | . . . . . . . . . . . . . . . . 9 . . . . . . Heat Dissipation 16 | 16 . . . . . . . . . . . . . . . . . . . . . . Mass Support 2 | . . 2 . . . . . . . . . . . . . . . . . . . . Inventory Capacity 6 | 2 . . . . . . 2 . . . . . . . . . . . . . 2 . Sight Range 4 | . . . . . . . 2 . . . . . . . . . . . . 2 . . Sensor Range 10 | 1 . . . . . . 2 . . . . . . 7 . . . . . . . . Ranged Accuracy 4 | . . . . . . . . . . . . . 4 . . . . . . . . . Hack Defense % 1 | . . . . . . . . . . . . . . . . . . . . 1 . . KI Resistance % 4 | . . . . . . . . . . . . . . . . . . 1 . . . 3 TH Resistance % 4 | . . . . . . . . . . . . . . . . . . 2 . . . 2 EX Resistance % 4 | . . . . . . . . . . . . . . . . . . 4 . . . . TH Damage % 3 | . . . . . . . . . . . . . . 3 . . . . . . . . Protomatter Created 7516 | . 114 41 653 30 . 156 890 381 . 67 286 . 88 . 245 511 81 1416 348 437 1085 687 Integrity Restored 8498 | . 91 170 216 . . 218 727 159 . 201 464 . 184 118 118 735 197 1947 420 848 1128 557 Core 6664 | . 91 138 216 . . 218 390 159 . 201 464 . 184 118 118 544 61 1947 420 266 772 357 Parts 1834 | . . 32 . . . . 337 . . . . . . . . 191 136 . . 582 356 200 Protomatter Decayed 6169 | . 83 37 527 51 . 82 635 327 . . 131 . 314 111 878 262 12 732 151 361 980 495 Game ------ Seed GaussBombShockpuncher Manual? 0 Play Time 02:50:28 Cumulative 86.3 hours Start 2021.04.05 @ 17:26:23 End 2021.04.05 @ 19:09:11 Sessions 5 Manual Loads 0 Difficulty Explorer Special Mode Winter2019/RPGLIKE Game No. 45 Rogue 2 Adventurer 0 Explorer 43 Win Type - Total 2 Types 2/0/0/0/0/0/0/0/0 Lore% 51 Gallery% 64 Achievement% 48 Wizard Run 0 Options --------- ASCII 0 Keyboard 0 Movement Mouse Keybinds 0 Fullscreen 1 Font 12/Smallcaps Map View 83x54 Tactical HUD 1 Map Filters NONE Filters NONE Steam 1 RUN: c8ec5c2b-a476-47a5-816b-2e8c0b668cbb